[Event "Early-Titled-Tuesday-Blitz-September-26-2023"]
[Site "Chess.com"]
[Date "2023.09.26"]
[Round "9"]
[White "scarabee43"]
[Black "Druid24"]
[Result "0-1"]
[WhiteElo "2782"]
[BlackElo "2672"]
[TimeControl "180+1"]
[EndTime "9:41:32 PDT"]
[Termination "Druid24 won by resignation"]

1. d4 {[%clk 0:03:00.9]} 1... Nf6 {[%clk 0:02:59.9]} 2. c4 {[%clk 0:03:00.9]}
2... e6 {[%clk 0:02:59.6]} 3. Nf3 {[%clk 0:03:00.7]} 3... b6 {[%clk 0:02:59.2]}
4. g3 {[%clk 0:03:00.3]} 4... Ba6 {[%clk 0:02:58.7]} 5. b3 {[%clk 0:02:58.7]}
5... Bb7 {[%clk 0:02:56.9]} 6. Bg2 {[%clk 0:02:58.5]} 6... d5 {[%clk 0:02:55.4]}
7. O-O {[%clk 0:02:57.2]} 7... Be7 {[%clk 0:02:55.3]} 8. Nc3 {[%clk 0:02:56.3]}
8... O-O {[%clk 0:02:54.6]} 9. Ne5 {[%clk 0:02:51.5]} 9... Nbd7 {[%clk
0:02:49.8]} 10. Bb2 {[%clk 0:02:45.8]} 10... c5 {[%clk 0:02:49]} 11. cxd5 {[%clk
0:02:44]} 11... Nxe5 {[%clk 0:02:47]} 12. dxe5 {[%clk 0:02:31.4]} 12... Nxd5
{[%clk 0:02:46.4]} 13. Nxd5 {[%clk 0:02:27.8]} 13... Bxd5 {[%clk 0:02:45.6]} 14.
e4 {[%clk 0:02:25.7]} 14... Bc6 {[%clk 0:02:43.2]} 15. Qe2 {[%clk 0:02:22]}
15... Qc7 {[%clk 0:02:43.3]} 16. Rfd1 {[%clk 0:02:20.7]} 16... Rfd8 {[%clk
0:02:42.9]} 17. f4 {[%clk 0:02:19.8]} 17... Rxd1+ {[%clk 0:02:42.3]} 18. Rxd1
{[%clk 0:02:19.6]} 18... Rd8 {[%clk 0:02:43.2]} 19. h4 {[%clk 0:02:10.8]} 19...
Rxd1+ {[%clk 0:02:40.5]} 20. Qxd1 {[%clk 0:02:11]} 20... b5 {[%clk 0:02:41.4]}
21. f5 {[%clk 0:02:09.1]} 21... c4 {[%clk 0:02:37.7]} 22. Kh2 {[%clk 0:02:02.1]}
22... exf5 {[%clk 0:02:31]} 23. bxc4 {[%clk 0:01:57]} 23... bxc4 {[%clk
0:02:26.6]} 24. exf5 {[%clk 0:01:30.8]} 24... Bxg2 {[%clk 0:02:27.5]} 25. Kxg2
{[%clk 0:01:31.1]} 25... c3 {[%clk 0:02:27.4]} 26. Qc2 {[%clk 0:01:25.8]} 26...
Qb7+ {[%clk 0:02:25.5]} 0-1

[Event "Early-Titled-Tuesday-Blitz-September-26-2023"]
[Site "Chess.com"]
[Date "2023.09.26"]
[Round "9"]
[White "JosefineHeinemann"]
[Black "Kostukov_Alex"]
[Result "0-1"]
[WhiteElo "2539"]
[BlackElo "2401"]
[TimeControl "180+1"]
[EndTime "9:41:48 PDT"]
[Termination "Kostukov_Alex won by resignation"]

1. Nf3 {[%clk 0:02:57.6]} 1... c5 {[%clk 0:02:58.6]} 2. g3 {[%clk 0:02:54.3]}
2... g6 {[%clk 0:02:53.9]} 3. Bg2 {[%clk 0:02:53.2]} 3... Bg7 {[%clk 0:02:54.8]}
4. c4 {[%clk 0:02:51.7]} 4... Nf6 {[%clk 0:02:55.2]} 5. O-O {[%clk 0:02:52.4]}
5... O-O {[%clk 0:02:55.5]} 6. Nc3 {[%clk 0:02:45]} 6... Nc6 {[%clk 0:02:55.1]}
7. d3 {[%clk 0:02:42.4]} 7... d5 {[%clk 0:02:54.4]} 8. cxd5 {[%clk 0:02:41.5]}
8... Nxd5 {[%clk 0:02:55.3]} 9. Bd2 {[%clk 0:02:38.7]} 9... Nc7 {[%clk
0:02:55.2]} 10. Rc1 {[%clk 0:02:37.4]} 10... b6 {[%clk 0:02:55.4]} 11. Qc2
{[%clk 0:02:28.7]} 11... Bb7 {[%clk 0:02:55]} 12. a3 {[%clk 0:02:28.8]} 12...
Rc8 {[%clk 0:02:54]} 13. Qb1 {[%clk 0:02:27.2]} 13... Nd4 {[%clk 0:02:42.9]} 14.
Nxd4 {[%clk 0:02:25.9]} 14... Bxg2 {[%clk 0:02:42.5]} 15. Kxg2 {[%clk
0:02:23.4]} 15... cxd4 {[%clk 0:02:41.2]} 16. Na2 {[%clk 0:02:21.7]} 16... Qd5+
{[%clk 0:02:37]} 17. Kg1 {[%clk 0:02:21.3]} 17... Qh5 {[%clk 0:02:25]} 18. Nb4
{[%clk 0:02:15.4]} 18... Qxe2 {[%clk 0:02:20.2]} 19. Rc2 {[%clk 0:02:15.4]}
19... Qf3 {[%clk 0:01:52]} 20. Nc6 {[%clk 0:02:09.8]} 20... Nd5 {[%clk
0:01:44.5]} 21. Nxa7 {[%clk 0:02:04.7]} 21... Ra8 {[%clk 0:01:44.5]} 22. Nb5
{[%clk 0:02:03.4]} 22... Qxd3 {[%clk 0:01:43.1]} 23. Nc7 {[%clk 0:01:57]} 23...
Nxc7 {[%clk 0:01:35.5]} 24. Rxc7 {[%clk 0:01:55.9]} 24... Qxd2 {[%clk
0:01:35.7]} 0-1

[Event "Early-Titled-Tuesday-Blitz-September-26-2023"]
[Site "Chess.com"]
[Date "2023.09.26"]
[Round "9"]
[White "cristiano78"]
[Black "GMaka"]
[Result "0-1"]
[WhiteElo "2249"]
[BlackElo "2426"]
[TimeControl "180+1"]
[EndTime "9:41:55 PDT"]
[Termination "GMaka won by resignation"]

1. d4 {[%clk 0:03:00.9]} 1... e6 {[%clk 0:02:58.8]} 2. c4 {[%clk 0:03:01.1]}
2... d5 {[%clk 0:02:57.9]} 3. Nf3 {[%clk 0:03:00.2]} 3... Nf6 {[%clk 0:02:58.1]}
4. Nc3 {[%clk 0:03:00.6]} 4... dxc4 {[%clk 0:02:57.2]} 5. Bg5 {[%clk 0:02:59.9]}
5... Bb4 {[%clk 0:02:53.5]} 6. e4 {[%clk 0:02:59.2]} 6... b5 {[%clk 0:02:52.1]}
7. e5 {[%clk 0:02:56.6]} 7... h6 {[%clk 0:02:51.4]} 8. Bh4 {[%clk 0:02:55.9]}
8... g5 {[%clk 0:02:50.7]} 9. exf6 {[%clk 0:02:55.7]} 9... gxh4 {[%clk
0:02:50.8]} 10. Ne5 {[%clk 0:02:54.4]} 10... Qxf6 {[%clk 0:02:48.3]} 11. Be2
{[%clk 0:02:53.9]} 11... c6 {[%clk 0:02:41.5]} 12. Bf3 {[%clk 0:02:51.5]} 12...
Bb7 {[%clk 0:02:36.1]} 13. O-O {[%clk 0:02:49.5]} 13... Bxc3 {[%clk 0:02:36]}
14. bxc3 {[%clk 0:02:49.3]} 14... h3 {[%clk 0:02:24.1]} 15. g3 {[%clk
0:02:48.2]} 15... Nd7 {[%clk 0:02:20.8]} 16. Nxc6 {[%clk 0:02:45.9]} 16... Rc8
{[%clk 0:02:13.8]} 17. d5 {[%clk 0:02:45.2]} 17... Bxc6 {[%clk 0:02:04.4]} 18.
dxc6 {[%clk 0:02:44.3]} 18... Ne5 {[%clk 0:02:04.8]} 19. Be4 {[%clk 0:02:43.6]}
19... Ke7 {[%clk 0:01:27.6]} 20. a3 {[%clk 0:02:38.2]} 20... Rhd8 {[%clk
0:01:27.1]} 21. Qb1 {[%clk 0:02:33.8]} 21... Nf3+ {[%clk 0:01:24.8]} 22. Kh1
{[%clk 0:02:31.7]} 22... Nd2 {[%clk 0:01:22.7]} 23. Qb4+ {[%clk 0:02:30]} 23...
Ke8 {[%clk 0:01:21.5]} 24. Qxb5 {[%clk 0:02:19.8]} 24... Nxe4 {[%clk 0:01:17.2]}
25. c7+ {[%clk 0:02:19.3]} 25... Rd7 {[%clk 0:01:17.3]} 26. Rfd1 {[%clk
0:02:18.2]} 26... Qf3+ {[%clk 0:01:16.6]} 0-1

[Event "Early-Titled-Tuesday-Blitz-September-26-2023"]
[Site "Chess.com"]
[Date "2023.09.26"]
[Round "9"]
[White "ajedrezhoy"]
[Black "Irina_Mikhaylova"]
[Result "0-1"]
[WhiteElo "2371"]
[BlackElo "2301"]
[TimeControl "180+1"]
[EndTime "9:42:20 PDT"]
[Termination "Irina_Mikhaylova won by resignation"]

1. c4 {[%clk 0:03:00.9]} 1... Nf6 {[%clk 0:02:59.1]} 2. Nc3 {[%clk 0:02:59.2]}
2... d5 {[%clk 0:02:59.5]} 3. cxd5 {[%clk 0:02:58.1]} 3... Nxd5 {[%clk
0:02:59.7]} 4. Nf3 {[%clk 0:02:56.7]} 4... Nxc3 {[%clk 0:02:54.6]} 5. dxc3
{[%clk 0:02:56.5]} 5... Qxd1+ {[%clk 0:02:54]} 6. Kxd1 {[%clk 0:02:56.7]} 6...
f6 {[%clk 0:02:51.4]} 7. e4 {[%clk 0:02:56.3]} 7... e5 {[%clk 0:02:51.8]} 8. Be3
{[%clk 0:02:55.3]} 8... Be6 {[%clk 0:02:51.9]} 9. Nd2 {[%clk 0:02:54.1]} 9...
Nd7 {[%clk 0:02:51.8]} 10. Bc4 {[%clk 0:02:53]} 10... Kf7 {[%clk 0:02:51.8]} 11.
Ke2 {[%clk 0:02:51.9]} 11... Bc5 {[%clk 0:02:51.9]} 12. Bxe6+ {[%clk 0:02:46.4]}
12... Kxe6 {[%clk 0:02:52]} 13. Nc4 {[%clk 0:02:46.3]} 13... Bxe3 {[%clk
0:02:43.8]} 14. Nxe3 {[%clk 0:02:45.4]} 14... c6 {[%clk 0:02:41.3]} 15. a4
{[%clk 0:02:41.6]} 15... Rhd8 {[%clk 0:02:29.6]} 16. Rhd1 {[%clk 0:02:40.2]}
16... Nc5 {[%clk 0:02:23.7]} 17. Rxd8 {[%clk 0:02:33.1]} 17... Rxd8 {[%clk
0:02:23.1]} 18. b4 {[%clk 0:02:24.6]} 18... Nxe4 {[%clk 0:01:42.1]} 19. Nd1
{[%clk 0:02:24.1]} 19... Nd6 {[%clk 0:01:19.4]} 20. a5 {[%clk 0:02:23.3]} 20...
Nc4 {[%clk 0:01:18.8]} 21. a6 {[%clk 0:02:18.3]} 21... b5 {[%clk 0:01:12.5]} 22.
f3 {[%clk 0:02:12.5]} 22... Rd2+ {[%clk 0:01:05.7]} 23. Kf1 {[%clk 0:02:11.8]}
23... Rxd1+ {[%clk 0:00:58.6]} 24. Rxd1 {[%clk 0:02:09.8]} 24... Ne3+ {[%clk
0:00:59.2]} 25. Ke2 {[%clk 0:02:10]} 25... Nxd1 {[%clk 0:00:59.5]} 26. Kxd1
{[%clk 0:02:10.2]} 26... Kd5 {[%clk 0:01:00]} 27. Kd2 {[%clk 0:02:10.5]} 27...
Kc4 {[%clk 0:01:00.2]} 28. Kc2 {[%clk 0:02:10.6]} 28... f5 {[%clk 0:01:00.4]}
0-1

[Event "Early-Titled-Tuesday-Blitz-September-26-2023"]
[Site "Chess.com"]
[Date "2023.09.26"]
[Round "9"]
[White "Doudou2015"]
[Black "cukin84"]
[Result "1-0"]
[WhiteElo "2172"]
[BlackElo "2195"]
[TimeControl "180+1"]
[EndTime "9:42:21 PDT"]
[Termination "Doudou2015 won by resignation"]

1. b3 {[%clk 0:02:48.6]} 1... f5 {[%clk 0:02:58.6]} 2. Bb2 {[%clk 0:02:49.5]}
2... Nf6 {[%clk 0:02:58.3]} 3. e3 {[%clk 0:02:49.8]} 3... e6 {[%clk 0:02:58.5]}
4. f4 {[%clk 0:02:50.5]} 4... Be7 {[%clk 0:02:56.7]} 5. Nf3 {[%clk 0:02:51.4]}
5... O-O {[%clk 0:02:56.5]} 6. Nc3 {[%clk 0:02:47.3]} 6... d5 {[%clk 0:02:56]}
7. Qe2 {[%clk 0:02:42]} 7... c5 {[%clk 0:02:54.5]} 8. O-O-O {[%clk 0:02:41.7]}
8... Nc6 {[%clk 0:02:53.8]} 9. h3 {[%clk 0:02:41.3]} 9... a6 {[%clk 0:02:44.9]}
10. g4 {[%clk 0:02:40.4]} 10... b5 {[%clk 0:02:40.5]} 11. gxf5 {[%clk
0:02:39.7]} 11... exf5 {[%clk 0:02:40.3]} 12. Rg1 {[%clk 0:02:38.5]} 12... Kh8
{[%clk 0:02:38.5]} 13. Qg2 {[%clk 0:02:35.7]} 13... Rg8 {[%clk 0:02:36.2]} 14.
Ng5 {[%clk 0:02:33.9]} 14... Qe8 {[%clk 0:02:30]} 15. Nxd5 {[%clk 0:02:31.7]}
15... Nxd5 {[%clk 0:01:56]} 16. Qxd5 {[%clk 0:02:32.6]} 16... Bxg5 {[%clk
0:01:52.8]} 17. Rxg5 {[%clk 0:02:28.5]} 17... Be6 {[%clk 0:01:52.2]} 18. Qg2
{[%clk 0:02:20.6]} 18... Ra7 {[%clk 0:01:44.2]} 19. Be2 {[%clk 0:02:05]} 19...
c4 {[%clk 0:01:40.5]} 20. Rg1 {[%clk 0:01:52.2]} 20... cxb3 {[%clk 0:01:40.2]}
21. Rxg7 {[%clk 0:01:14.6]} 21... Raxg7 {[%clk 0:01:38.4]} 22. Bxg7+ {[%clk
0:01:13.4]} 1-0

[Event "Early-Titled-Tuesday-Blitz-September-26-2023"]
[Site "Chess.com"]
[Date "2023.09.26"]
[Round "9"]
[White "carloseduar100"]
[Black "AleksandrAleksikov"]
[Result "1-0"]
[WhiteElo "2328"]
[BlackElo "2213"]
[TimeControl "180+1"]
[EndTime "9:42:33 PDT"]
[Termination "carloseduar100 won on time"]

1. d4 {[%clk 0:02:54.5]} 1... Nf6 {[%clk 0:02:58.5]} 2. Bg5 {[%clk 0:02:53.8]}
2... e6 {[%clk 0:02:56.6]} 3. e4 {[%clk 0:02:52.6]} 3... h6 {[%clk 0:02:56.3]}
4. Bxf6 {[%clk 0:02:49.7]} 4... Qxf6 {[%clk 0:02:56.3]} 5. c3 {[%clk 0:02:50.6]}
5... d6 {[%clk 0:02:54.5]} 6. Nd2 {[%clk 0:02:50.1]} 6... Nd7 {[%clk 0:02:50.6]}
7. Bd3 {[%clk 0:02:50.7]} 7... b6 {[%clk 0:02:46.7]} 8. Ne2 {[%clk 0:02:50.5]}
8... Bb7 {[%clk 0:02:45.8]} 9. O-O {[%clk 0:02:50.7]} 9... O-O-O {[%clk
0:02:19.7]} 10. a4 {[%clk 0:02:49.2]} 10... e5 {[%clk 0:02:13.3]} 11. a5 {[%clk
0:02:47.8]} 11... g6 {[%clk 0:01:54.5]} 12. axb6 {[%clk 0:02:45.3]} 12... axb6
{[%clk 0:01:52]} 13. Ra7 {[%clk 0:02:44.1]} 13... Nb8 {[%clk 0:01:38.8]} 14. Qa4
{[%clk 0:02:43]} 14... Qe7 {[%clk 0:01:31]} 15. Ra1 {[%clk 0:02:41.4]} 15... Qd7
{[%clk 0:01:28.8]} 16. Bb5 {[%clk 0:02:39.5]} 16... Bc6 {[%clk 0:01:22.9]} 17.
Ra8 {[%clk 0:02:27.9]} 1-0

[Event "Early-Titled-Tuesday-Blitz-September-26-2023"]
[Site "Chess.com"]
[Date "2023.09.26"]
[Round "9"]
[White "Smile2005"]
[Black "campochess"]
[Result "1-0"]
[WhiteElo "2409"]
[BlackElo "2177"]
[TimeControl "180+1"]
[EndTime "9:42:36 PDT"]
[Termination "Smile2005 won by resignation"]

1. e4 {[%clk 0:03:00.9]} 1... c5 {[%clk 0:02:59.9]} 2. Nf3 {[%clk 0:03:00.9]}
2... Nc6 {[%clk 0:02:59.7]} 3. d4 {[%clk 0:03:01.1]} 3... cxd4 {[%clk
0:02:59.7]} 4. Nxd4 {[%clk 0:03:02]} 4... e5 {[%clk 0:02:59.7]} 5. Nb5 {[%clk
0:03:01.9]} 5... a6 {[%clk 0:03:00]} 6. Nd6+ {[%clk 0:03:01.8]} 6... Bxd6 {[%clk
0:02:59.9]} 7. Qxd6 {[%clk 0:03:02.7]} 7... Qe7 {[%clk 0:03:00]} 8. Qd3 {[%clk
0:03:02.6]} 8... Nf6 {[%clk 0:02:59.6]} 9. Nc3 {[%clk 0:03:01.3]} 9... h6 {[%clk
0:02:58.2]} 10. Be3 {[%clk 0:03:00.5]} 10... d6 {[%clk 0:02:58]} 11. O-O-O
{[%clk 0:02:59.4]} 11... O-O {[%clk 0:02:41.3]} 12. Qxd6 {[%clk 0:02:58.8]}
12... Qe8 {[%clk 0:02:41.4]} 13. Bc5 {[%clk 0:02:55]} 13... Nd7 {[%clk
0:02:23.7]} 14. Nd5 {[%clk 0:02:54.2]} 14... Nxc5 {[%clk 0:02:20.2]} 15. Qxc5
{[%clk 0:02:54.1]} 15... Qd8 {[%clk 0:02:12.3]} 16. Nb6 {[%clk 0:02:47]} 16...
Qg5+ {[%clk 0:02:06.7]} 17. Kb1 {[%clk 0:02:43.9]} 17... Rb8 {[%clk 0:02:06.1]}
18. Bc4 {[%clk 0:02:35.4]} 18... Bg4 {[%clk 0:01:52.2]} 19. f3 {[%clk
0:02:33.6]} 19... Bh5 {[%clk 0:01:51.9]} 20. g4 {[%clk 0:02:31.9]} 20... Bg6
{[%clk 0:01:51.8]} 21. h4 {[%clk 0:02:30.8]} 21... Qf4 {[%clk 0:01:51]} 22. g5
{[%clk 0:02:23.6]} 22... h5 {[%clk 0:01:48.8]} 23. Nd7 {[%clk 0:02:22]} 23...
Nd4 {[%clk 0:01:38.6]} 24. Qxe5 {[%clk 0:02:18.5]} 24... Qxe5 {[%clk 0:01:33.7]}
25. Nxe5 {[%clk 0:02:19.4]} 25... b5 {[%clk 0:01:18.7]} 26. Nxg6 {[%clk
0:02:15.7]} 26... bxc4 {[%clk 0:01:18]} 27. Nxf8 {[%clk 0:02:14.3]} 27... Nxf3
{[%clk 0:01:12.2]} 28. Nd7 {[%clk 0:02:12.3]} 28... Rb5 {[%clk 0:01:11]} 29. c3
{[%clk 0:02:10.7]} 29... Kh7 {[%clk 0:01:02.4]} 30. Rh3 {[%clk 0:02:06.7]} 30...
Ne5 {[%clk 0:00:59.8]} 31. Nxe5 {[%clk 0:02:06.3]} 31... Rxe5 {[%clk 0:00:59.5]}
32. Rd4 {[%clk 0:02:06.4]} 1-0

[Event "Early-Titled-Tuesday-Blitz-September-26-2023"]
[Site "Chess.com"]
[Date "2023.09.26"]
[Round "9"]
[White "KatakuriDono"]
[Black "Caroexpert"]
[Result "0-1"]
[WhiteElo "2322"]
[BlackElo "2451"]
[TimeControl "180+1"]
[EndTime "9:43:05 PDT"]
[Termination "Caroexpert won by resignation"]

1. d4 {[%clk 0:03:00.9]} 1... d5 {[%clk 0:02:58.1]} 2. c4 {[%clk 0:03:01.3]}
2... e6 {[%clk 0:02:58.4]} 3. Nc3 {[%clk 0:03:01.9]} 3... a6 {[%clk 0:02:58.9]}
4. cxd5 {[%clk 0:03:01.5]} 4... exd5 {[%clk 0:02:59.8]} 5. Nf3 {[%clk
0:03:01.8]} 5... Nf6 {[%clk 0:02:56.4]} 6. Bg5 {[%clk 0:03:01.4]} 6... Be6
{[%clk 0:02:56.7]} 7. e3 {[%clk 0:03:00.6]} 7... Nbd7 {[%clk 0:02:57.1]} 8. Bd3
{[%clk 0:03:00.5]} 8... c6 {[%clk 0:02:56.9]} 9. Qc2 {[%clk 0:02:59.9]} 9... Bd6
{[%clk 0:02:56.8]} 10. Rb1 {[%clk 0:02:56.8]} 10... h6 {[%clk 0:02:52]} 11. Bh4
{[%clk 0:02:56.5]} 11... O-O {[%clk 0:02:51.2]} 12. b4 {[%clk 0:02:53.8]} 12...
b5 {[%clk 0:02:48.4]} 13. O-O {[%clk 0:02:43.2]} 13... Re8 {[%clk 0:02:47.1]}
14. Ne2 {[%clk 0:02:38.1]} 14... Rc8 {[%clk 0:02:46.2]} 15. Nf4 {[%clk
0:02:28.2]} 15... Bg4 {[%clk 0:02:37.4]} 16. Ne2 {[%clk 0:02:07.6]} 16... Nb6
{[%clk 0:02:25.7]} 17. Bxf6 {[%clk 0:01:28.8]} 17... Qxf6 {[%clk 0:02:22.4]} 18.
Nd2 {[%clk 0:01:20.8]} 18... Nc4 {[%clk 0:02:19.5]} 19. Bxc4 {[%clk 0:01:20.6]}
19... bxc4 {[%clk 0:02:14.4]} 20. Ng3 {[%clk 0:01:15.3]} 20... Bxg3 {[%clk
0:02:09.5]} 21. fxg3 {[%clk 0:01:06.3]} 21... Qg5 {[%clk 0:01:59.3]} 22. e4
{[%clk 0:00:57.7]} 22... Be2 {[%clk 0:01:50.7]} 23. Rf5 {[%clk 0:00:55.5]} 23...
Qe3+ {[%clk 0:01:49.7]} 24. Kh1 {[%clk 0:00:55.9]} 24... Bd3 {[%clk 0:01:50]}
25. Qd1 {[%clk 0:00:52.8]} 25... Bxb1 {[%clk 0:01:49.7]} 26. Nxb1 {[%clk
0:00:52.9]} 26... Qxe4 {[%clk 0:01:47.9]} 27. Rf1 {[%clk 0:00:51.3]} 27... Qe2
{[%clk 0:01:47.8]} 28. Qc1 {[%clk 0:00:49.5]} 28... Re3 {[%clk 0:01:43]} 29. Nc3
{[%clk 0:00:47.5]} 29... Rxc3 {[%clk 0:01:42]} 0-1

[Event "Early-Titled-Tuesday-Blitz-September-26-2023"]
[Site "Chess.com"]
[Date "2023.09.26"]
[Round "9"]
[White "lamomiajunior"]
[Black "Squirlolz"]
[Result "0-1"]
[WhiteElo "2745"]
[BlackElo "2578"]
[TimeControl "180+1"]
[EndTime "9:43:16 PDT"]
[Termination "Squirlolz won by resignation"]

1. d4 {[%clk 0:03:00.9]} 1... Nf6 {[%clk 0:02:59.5]} 2. c4 {[%clk 0:03:01.4]}
2... c5 {[%clk 0:02:59.8]} 3. d5 {[%clk 0:03:01.7]} 3... e6 {[%clk 0:03:00.3]}
4. Nc3 {[%clk 0:03:01.7]} 4... exd5 {[%clk 0:03:00.9]} 5. cxd5 {[%clk
0:03:02.6]} 5... d6 {[%clk 0:03:01.5]} 6. e4 {[%clk 0:03:03.2]} 6... g6 {[%clk
0:03:01.9]} 7. f4 {[%clk 0:03:03.9]} 7... Bg4 {[%clk 0:03:01.8]} 8. Nf3 {[%clk
0:02:56.9]} 8... Bg7 {[%clk 0:03:01.3]} 9. Bb5+ {[%clk 0:02:52.6]} 9... Nbd7
{[%clk 0:03:00.6]} 10. e5 {[%clk 0:02:33.8]} 10... Nh5 {[%clk 0:02:55]} 11. e6
{[%clk 0:02:04.8]} 11... fxe6 {[%clk 0:02:54.8]} 12. dxe6 {[%clk 0:02:05.7]}
12... Bxe6 {[%clk 0:02:53.8]} 13. Ng5 {[%clk 0:01:46.1]} 13... Qe7 {[%clk
0:02:36.3]} 14. O-O {[%clk 0:01:44.2]} 14... Bd4+ {[%clk 0:02:07.1]} 15. Kh1
{[%clk 0:01:43.3]} 15... O-O-O {[%clk 0:01:47.8]} 16. Re1 {[%clk 0:01:42]} 16...
Nf8 {[%clk 0:01:03.9]} 17. Nd5 {[%clk 0:01:03.8]} 17... Qg7 {[%clk 0:01:03.4]}
18. Nxe6 {[%clk 0:01:02.6]} 18... Ng3+ {[%clk 0:01:01.7]} 19. hxg3 {[%clk
0:00:49]} 19... Qh6+ {[%clk 0:01:00.9]} 0-1

[Event "Early-Titled-Tuesday-Blitz-September-26-2023"]
[Site "Chess.com"]
[Date "2023.09.26"]
[Round "9"]
[White "SharapovEvgeny"]
[Black "ATM622"]
[Result "1-0"]
[WhiteElo "2585"]
[BlackElo "2417"]
[TimeControl "180+1"]
[EndTime "9:43:17 PDT"]
[Termination "SharapovEvgeny won by resignation"]

1. e4 {[%clk 0:02:53.5]} 1... c6 {[%clk 0:02:58.5]} 2. d4 {[%clk 0:02:53.1]}
2... d5 {[%clk 0:02:59]} 3. e5 {[%clk 0:02:53.6]} 3... c5 {[%clk 0:02:58.1]} 4.
Nf3 {[%clk 0:02:53.2]} 4... cxd4 {[%clk 0:02:57.6]} 5. Qxd4 {[%clk 0:02:50.7]}
5... Nc6 {[%clk 0:02:57.9]} 6. Qf4 {[%clk 0:02:50.8]} 6... h6 {[%clk 0:02:53.3]}
7. Bd3 {[%clk 0:02:48.7]} 7... g5 {[%clk 0:02:52.9]} 8. Qg3 {[%clk 0:02:46.8]}
8... g4 {[%clk 0:02:49.3]} 9. Nh4 {[%clk 0:02:43.1]} 9... e6 {[%clk 0:02:46]}
10. Qxg4 {[%clk 0:02:39.9]} 10... Nxe5 {[%clk 0:02:40.6]} 11. Bb5+ {[%clk
0:02:35.4]} 11... Bd7 {[%clk 0:02:39.2]} 12. Bxd7+ {[%clk 0:02:35.2]} 12... Qxd7
{[%clk 0:02:37.7]} 13. Qg3 {[%clk 0:02:34.5]} 13... Nc6 {[%clk 0:02:07.5]} 14.
O-O {[%clk 0:02:33.5]} 14... Nf6 {[%clk 0:02:02.5]} 15. Nc3 {[%clk 0:02:26.6]}
15... Bd6 {[%clk 0:01:41.6]} 16. Qg7 {[%clk 0:02:23.2]} 16... Ke7 {[%clk
0:01:31]} 17. Ng6+ {[%clk 0:02:22.7]} 17... Kd8 {[%clk 0:01:20.6]} 18. Qxh8+
{[%clk 0:02:18.3]} 18... Kc7 {[%clk 0:01:16.1]} 19. Qxf6 {[%clk 0:02:16.9]}
19... fxg6 {[%clk 0:01:15.4]} 20. Nb5+ {[%clk 0:02:15]} 20... Kb6 {[%clk
0:01:15]} 21. Nxd6 {[%clk 0:02:14.8]} 21... Qxd6 {[%clk 0:01:15.9]} 22. Be3+
{[%clk 0:02:13.4]} 22... d4 {[%clk 0:01:15.2]} 23. Bf4 {[%clk 0:02:13.5]} 23...
Qd5 {[%clk 0:01:14.5]} 24. Qxg6 {[%clk 0:02:10.8]} 24... e5 {[%clk 0:01:14.6]}
25. Bg3 {[%clk 0:02:10.7]} 25... e4 {[%clk 0:00:55]} 26. Rad1 {[%clk 0:02:10]}
26... Rd8 {[%clk 0:00:52.3]} 27. Qxh6 {[%clk 0:02:08.7]} 27... Rd7 {[%clk
0:00:40.9]} 28. Qd2 {[%clk 0:02:04.4]} 28... Qxa2 {[%clk 0:00:39.6]} 29. c3
{[%clk 0:02:02.4]} 29... d3 {[%clk 0:00:38.5]} 30. Qe3+ {[%clk 0:02:02.6]} 30...
Kb5 {[%clk 0:00:29.6]} 31. Qxe4 {[%clk 0:02:02]} 31... a5 {[%clk 0:00:27.5]} 32.
Rxd3 {[%clk 0:02:01.6]} 32... Re7 {[%clk 0:00:22.7]} 33. Qd5+ {[%clk 0:02:01.4]}
33... Ka6 {[%clk 0:00:22.7]} 34. Qxa2 {[%clk 0:02:00.5]} 1-0

[Event "Early-Titled-Tuesday-Blitz-September-26-2023"]
[Site "Chess.com"]
[Date "2023.09.26"]
[Round "9"]
[White "Boundless_Strike"]
[Black "skkeyan1309"]
[Result "0-1"]
[WhiteElo "2597"]
[BlackElo "2727"]
[TimeControl "180+1"]
[EndTime "9:43:18 PDT"]
[Termination "skkeyan1309 won by resignation"]

1. d4 {[%clk 0:02:58]} 1... c5 {[%clk 0:02:59.2]} 2. Nc3 {[%clk 0:01:45.2]} 2...
cxd4 {[%clk 0:02:57.6]} 3. Qxd4 {[%clk 0:01:46.1]} 3... Nc6 {[%clk 0:02:56.7]}
4. Qh4 {[%clk 0:01:46.6]} 4... Nf6 {[%clk 0:02:55.4]} 5. Bg5 {[%clk 0:01:46.4]}
5... e6 {[%clk 0:02:55.6]} 6. O-O-O {[%clk 0:01:44.6]} 6... Be7 {[%clk
0:02:55.7]} 7. e4 {[%clk 0:01:45.2]} 7... d6 {[%clk 0:02:56.1]} 8. Nf3 {[%clk
0:01:45.1]} 8... h6 {[%clk 0:02:56.3]} 9. e5 {[%clk 0:01:39]} 9... Nd5 {[%clk
0:02:37]} 10. Nxd5 {[%clk 0:01:37.9]} 10... Bxg5+ {[%clk 0:02:33.4]} 11. Nxg5
{[%clk 0:01:24.2]} 11... exd5 {[%clk 0:02:32.9]} 12. f4 {[%clk 0:01:14.2]} 12...
dxe5 {[%clk 0:02:27.5]} 13. Bc4 {[%clk 0:01:00.9]} 13... O-O {[%clk 0:02:11.6]}
14. Bxd5 {[%clk 0:00:36.2]} 14... Nd4 {[%clk 0:02:02.9]} 15. Be4 {[%clk
0:00:14]} 15... f5 {[%clk 0:01:55]} 16. c3 {[%clk 0:00:08.4]} 16... hxg5 {[%clk
0:01:53.4]} 17. fxg5 {[%clk 0:00:08.1]} 17... fxe4 {[%clk 0:01:52.3]} 18. cxd4
{[%clk 0:00:08.4]} 18... exd4 {[%clk 0:01:47]} 0-1